[Event "ESP-ch Teams Primera 2022"]
[Site "Sanxenxo Pontevedra"]
[Date "2022.09.23"]
[Round "7.7"]
[White "Vallejo Pons, Francisco"]
[Black "Cordova, Emilio"]
[Result "1-0"]
[ECO "B62"]
[WhiteElo "2711"]
[BlackElo "2550"]
[Annotator "TA"]
[PlyCount "190"]
[EventDate "2022.09.17"]
[EventType "team-tourn"]
[EventCountry "ESP"]
[SourceTitle "playchess.com"]
[Source "ChessBase"]
[SourceQuality "1"]
[TimeControl "5400+30"]

{[%evp 12,190,35,16,32,38,33,0,0,11,45,36,90,38,29,37,71,76,65,56,69,54,54,67,68,46,46,46,55,51,56,43,37,42,84,80,75,89,111,64,63,65,68,72,73,73,203,83,168,133,229,233,216,177,166,162,241,214,547,569,524,477,566,566,539,494,4890,2072,1251,372,341,162,162,162,723,695,722,718,634,608,1260,1245,1199,1182,1063,1041,963,544,2756,1763,5408,9447,12833,12834,12847,12847,12848,12847,12849,12849,12850,12850,12850,27999,27999,27999,27999,27999,27999,27999,27999,27999,27999,27999,27999,27999,27999,27999,27999,27999,27999,27999,27999,27999,27999,27999,27999,27999,27999,27999,27999,27999,27999,27999,27999,27999,27999,27999,27999,27999,27999,27999,27999,27999,27999,27999,27999,27999,27999,27999,27999,27999,27999,27999,27999,27999,27999,27999,27999,27999,27999,27999,27999,27999,27999,27999,27999,27999,27999,27999,27999,27999,27999,27999,27999,27999,27999,27999,27999,27999,27999]} 1. e4 {[%emt 0:02:14]} c5 {[%emt 0:01:16]} 2. Nf3 {[%emt 0:00:23]} Nc6 {[%emt 0:01:22]} 3. Nc3 {[%emt 0:00:45]} d6 {[%emt 0:02:47]} 4. d4 {[%emt 0:00:33]} cxd4 {[%emt 0:00:07]} 5. Nxd4 {[%emt 0:00:04]} Nf6 {[%emt 0:00:11]} 6. Bg5 {[%emt 0:00:22]} e6 {[%emt 0:01:37]} 7. Qd3 {[%emt 0:00:32]} Bd7 {[%emt 0:01:55] outshines the older 7...a6. B62: Sicilian: Richter-Rauzer: 6...e6: Unusual White 7th moves.} 8. O-O-O {[%emt 0:01:13]} a6 {[%emt 0:01:26] Prevents Ndb5.} 9. Qg3 {[%emt 0:00:38]} Nxd4 {[%emt 0:05:10] The position is equal.} 10. Rxd4 {[%emt 0:00:38]} Qa5 {[%emt 0:00:21] Prevents e5.} 11. f4 {[%emt 0:19:48] [#]} Rc8 $146 {[%emt 0:01:08]} ({Better is} 11... Qc5 $14 12. Rd1 h6) ({Predecessor:} 11... Bc6 12. Be2 e5 13. fxe5 Qxe5 14. Qe3 Be7 15. Bf4 Qc5 16. Rhd1 O-O 17. Qg3 Rfe8 {1-0 (60) Hearst,E-Kaufman,A New York 1955}) 12. e5 {[%emt 0:07:16]} (12. Be2 $16) 12... dxe5 $14 {[%emt 0:12:48]} 13. fxe5 {[%emt 0:01:26]} Nd5 {[%emt 0:03:12]} 14. Nxd5 {[%emt 0:09:11]} exd5 {[%emt 0:00:23]} 15. Kb1 {[%emt 0:03:38]} Be6 {[%emt 0:02:52]} 16. Bd3 {[%emt 0:08:50]} Bc5 {[%emt 0:17:41] [#]} 17. Bd2 $1 {[%emt 0:01:48]} Qb6 {[%emt 0:01:36]} (17... Qxd2 $2 18. Bb5+ $1 {[%mdl 512]} axb5 19. Rxd2 $18) 18. Rh4 {[%emt 0:01:40] White is more active.} (18. Ra4 $5 {[%cal Rg3g7]}) 18... g6 {[%emt 0:03:19]} 19. Rf1 {[%emt 0:02:03]} Rc6 {[%emt 0:02:20]} 20. Qe1 {[%emt 0:06:33]} Bd4 {[%emt 0:11:59][%csl Gd4][%cal Rb6b2]} 21. c3 {[%emt 0:07:36]} Bc5 {[%emt 0:00:12]} 22. Bg5 {[%emt 0:00:12]} h5 {[%emt 0:00:47]} 23. Bf6 $1 {[%emt 0:01:51]} Rg8 {[%emt 0:00:16]} 24. Bc2 {[%emt 0:04:18]} Qc7 {[%emt 0:16:41]} 25. Qd2 {[%emt 0:02:29]} ({White should play} 25. Bb3 $16) 25... Be7 $1 {[%emt 0:02:03]} 26. Ba4 $36 {[%emt 0:04:32][%mdl 2048] White has good play.} b5 {[%emt 0:00:10]} 27. Bb3 {[%emt 0:00:07]} Bxf6 {[%emt 0:02:47]} 28. exf6 {[%emt 0:00:13]} Bf5+ {[%emt 0:01:57]} (28... Rc5 $16) 29. Bc2 {[%emt 0:02:24]} (29. Ka1 $18 {has better winning chances.}) 29... Bxc2+ {[%emt 0:00:33]} (29... Be6 $16) 30. Kxc2 $18 {[%emt 0:02:08]} Kd8 {[%emt 0:00:08]} (30... Rd6 $16) 31. Re4 $1 {[%emt 0:01:58] And now Re7 would win.} ({Resist} 31. Qxd5+ $6 Kc8 $16) 31... Qd6 {[%emt 0:04:22]} 32. Rd4 {[%emt 0:03:42]} Kc8 {[%emt 0:00:10]} 33. Rxd5 {[%emt 0:00:07]} Qxh2 {[%emt 0:00:30]} (33... Qe6 $142 34. Rd1 Kb7) 34. Rd1 {[%emt 0:04:18]} Kb8 $2 {[%emt 0:00:43]} (34... Qc7 {is tougher.} 35. Rd7 Qe5) 35. Rd7 {[%emt 0:01:02]} Qe5 {[%emt 0:00:30]} 36. Qf2 {[%emt 0:00:53] Intending Qa7+ and mate.} Qf5+ {[%emt 0:01:03]} 37. Qxf5 {[%emt 0:00:03]} gxf5 {[%emt 0:00:05]} 38. Rxf7 {[%emt 0:00:12]} Rxg2+ {[%emt 0:00:24][%mdl 4096] Endgame KRR-KRR} (38... Kc8 $142 39. Kb3 (39. Rg7 Rxg7 40. fxg7 Rg6 $11) 39... Rc7 40. Rxc7+ Kxc7) 39. Kb3 {[%emt 0:00:22]} Rg8 {[%emt 0:00:19] Inhibits Rd8+.} 40. Rd5 $2 {[%emt 0:01:47]} (40. Rdd7 {aiming for Rb7+.} Re8 41. Rfe7) 40... h4 {[%emt 0:02:47]} 41. Rxf5 {[%emt 0:00:29]} (41. Rdd7 $142 {Threatens to win with Rb7+.} Rh8 42. Rb7+ Kc8 43. Ra7) 41... Rh8 {[%emt 0:00:03]} 42. Re7 {[%emt 0:00:35] Hoping for f7.} h3 $2 {[%emt 0:00:17]} (42... Rc7 43. Re2 Rhh7) 43. f7 {[%emt 0:00:22]} Rcc8 {[%emt 0:00:03]} 44. Rf1 $1 {[%emt 0:00:26]} h2 {[%emt 0:00:06] [#]} 45. Rh1 $1 {[%emt 0:00:06] Black must now prevent Re2.} Rh4 {[%emt 0:00:35]} 46. Re8 {[%emt 0:00:59]} Rf4 {[%emt 0:00:05]} 47. Rxh2 {[%emt 0:00:24]} Rxf7 {[%emt 0:00:04] [#]} 48. Re6 $1 {[%emt 0:00:24]} a5 {[%emt 0:00:30]} 49. Rh5 {[%emt 0:00:47]} Rb7 {[%emt 0:00:10]} 50. Ree5 {[%emt 0:00:29]} b4 {[%emt 0:00:09]} 51. c4 {[%emt 0:00:26]} a4+ {[%emt 0:00:03]} 52. Kxa4 {[%emt 0:00:12]} Rxc4 {[%emt 0:00:03]} 53. Rb5 {[%emt 0:00:43]} Rc2 {[%emt 0:03:37]} 54. Kb3 {[%emt 0:00:40]} Rg2 {[%emt 0:00:11]} 55. Rxb7+ {[%emt 0:00:12]} Kxb7 {[%emt 0:00:02] KR-KR} 56. Rb5+ {[%emt 0:00:04]} Ka6 {[%emt 0:00:13]} 57. Rxb4 {[%emt 0:00:04]} Rg3+ {[%emt 0:00:13] White mates.} 58. Ka4 {[%emt 0:00:24]} Rg2 {[%emt 0:00:43]} 59. a3 {[%emt 0:00:21]} Rh2 {[%emt 0:00:21]} 60. Kb3 {[%emt 0:00:14]} Ka5 {[%emt 0:00:59]} 61. Ka2 {[%emt 0:00:16]} Rg2 {[%emt 0:00:08]} 62. Re4 {[%emt 0:00:28]} Rh2 {[%emt 0:00:13]} 63. Rf4 {[%emt 0:00:25]} Rg2 {[%emt 0:00:06]} 64. Re4 {[%emt 0:00:03]} Rh2 {[%emt 0:00:05]} 65. a4 {[%emt 0:00:07]} Rh1 {[%emt 0:00:03]} 66. b3 {[%emt 0:00:18]} Rg1 {[%emt 0:00:16]} 67. Ka3 {[%emt 0:00:10]} Ra1+ {[%emt 0:00:05]} 68. Kb2 {[%emt 0:00:02]} Rh1 {[%emt 0:00:07]} 69. Re5+ {[%emt 0:00:07]} Kb6 {[%emt 0:00:22]} 70. Rf5 {[%emt 0:00:12]} Kc6 {[%emt 0:00:18]} 71. Ka3 {[%emt 0:00:08]} Kb6 {[%emt 0:00:29]} 72. Rf6+ {[%emt 0:01:31]} Kc5 {[%emt 0:00:32]} 73. b4+ {[%emt 0:00:51]} Kd5 {[%emt 0:00:05]} 74. Rf5+ {[%emt 0:02:17]} Kc6 {[%emt 0:00:08]} 75. Rc5+ {[%emt 0:00:45]} Kb7 {[%emt 0:00:24]} 76. Kb3 {[%emt 0:00:32]} Ka6 {[%emt 0:00:16]} 77. Rc6+ {[%emt 0:00:45]} Kb7 {[%emt 0:00:05]} 78. Re6 {[%emt 0:00:24]} Kc7 {[%emt 0:00:26]} 79. a5 {[%emt 0:00:12]} Kb7 {[%emt 0:00:13]} 80. Rf6 {[%emt 0:00:16]} Ka7 {[%emt 0:00:17]} 81. Rd6 {[%emt 0:00:01]} Kb7 {[%emt 0:00:23]} 82. Rg6 {[%emt 0:00:03]} Kc7 {[%emt 0:00:12]} 83. Ka4 {[%emt 0:00:13]} Kb7 {[%emt 0:00:13]} 84. Rg7+ {[%emt 0:00:08]} Kb8 {[%emt 0:00:34]} 85. a6 {[%emt 0:00:37]} Rh5 {[%emt 0:00:14]} 86. Re7 {[%emt 0:00:14]} Ka8 {[%emt 0:00:06]} 87. Rf7 {[%emt 0:00:22]} Rg5 {[%emt 0:00:07]} 88. b5 {[%emt 0:00:17]} Rg8 {[%emt 0:00:18]} 89. Ka5 {[%emt 0:00:17]} Rh8 {[%emt 0:00:10]} 90. Rg7 {[%emt 0:00:20]} Rf8 {[%emt 0:00:06]} 91. Rh7 {[%emt 0:00:08]} Rg8 {[%emt 0:00:05]} 92. Rd7 {[%emt 0:00:10]} Rb8 {[%emt 0:00:16]} 93. Rd5 {[%emt 0:01:23]} Rh8 {[%emt 0:00:14]} 94. b6 {[%emt 0:01:31]} Rg8 {[%emt 0:00:23]} 95. a7 {[%emt 0:01:50]} Rf8 {[%emt 0:04:27] Weighted Error Value: White=0.32/Black=0.33} 1-0

[Event "ESP-ch Teams Primera 2022"]
[Site "Sanxenxo Pontevedra"]
[Date "2022.09.23"]
[Round "7.8"]
[White "Krysa, Leandro"]
[Black "Narayanan.S.L"]
[Result "0-1"]
[ECO "D38"]
[WhiteElo "2535"]
[BlackElo "2657"]
[Annotator "TA"]
[PlyCount "72"]
[EventDate "2022.09.17"]
[EventType "team-tourn"]
[EventCountry "ESP"]
[SourceTitle "playchess.com"]
[Source "ChessBase"]
[SourceQuality "1"]
[TimeControl "5400+30"]

{[%evp 12,72,9,0,24,20,19,15,31,26,16,0,22,0,0,9,25,0,0,-25,-18,-29,-46,-68,-23,-32,-21,-29,-14,-16,-15,-11,-18,-277,-272,-485,-604,-614,-596,-1116,-1097,-1029,-972,-958,-946,-930,-924,-1087,-1015,-1067,-1046,-1085,-1117,-1099,-1089,-1164,-1109,-4794,-4588,-2690,-2757,-2250,-1732]} 1. d4 Nf6 2. c4 e6 3. Nf3 d5 4. Nc3 Bb4 5. Qa4+ Nc6 6. a3 Bxc3+ 7. bxc3 h6 {D38: Queen's Gambit Declined: Ragozin Defence (4 Nf3 Bb4).} 8. cxd5 exd5 9. e3 O-O {[#] The position is equal.} 10. c4 $146 ({Predecessor:} 10. Bd3 Bg4 11. Nd2 Ne7 12. Qb5 b6 13. a4 Bf5 14. Ba3 c6 15. Qb1 Bxd3 16. Qxd3 {½-½ (43) Kortschnoj,V (2671)-Landenbergue,C (2434) Switzerland 2003}) 10... Be6 11. Rb1 Rb8 12. Bd3 dxc4 13. Bxc4 Bf5 14. Rb2 a6 15. Ba2 Ne4 16. Bd2 {Inhibits Nc3.} Qf6 {Threatens to win with ...Nc5.} 17. Bb4 {Against Nc5} Nxb4 18. Qxb4 b5 {[%cal Oc7c5] next ...c5! is good for Black.} 19. O-O c5 20. dxc5 {[#]} Nxc5 $1 {[%cal Be4c5,Bc5e4,Be4c3][%mdl 32] Hoping for ...Nd3.} 21. Rd2 Rbc8 22. Rfd1 $2 {[%mdl 8192] White does not recover from this.} (22. Qd4 $11 {and White has nothing to worry.}) 22... Ne4 $19 23. Rb2 (23. Nd4 {was called for.} Nxd2 24. Qxd2) 23... a5 {Black is clearly winning.} 24. Qd4 Rfd8 25. Rxb5 Rxd4 26. Nxd4 Bg6 27. Rb2 Nc3 28. Ra1 Bd3 29. Re1 {[#]} Ne2+ $1 {[%mdl 512]} 30. Rbxe2 Bxe2 31. h3 Bc4 32. Bb1 a4 33. Bf5 Be6 34. Bc2 {[#]} Rxc2 $1 35. Nxc2 Qc3 36. Re2 Bc4 {Weighted Error Value: White=0.63/Black=0.10 (very precise)} 0-1

[Event "ESP-ch Teams Primera 2022"]
[Site "Sanxenxo Pontevedra"]
[Date "2022.09.23"]
[Round "7.9"]
[White "Fier, Alexandr"]
[Black "Ushenina, Anna"]
[Result "1-0"]
[ECO "C48"]
[WhiteElo "2583"]
[BlackElo "2439"]
[Annotator "TA"]
[PlyCount "139"]
[EventDate "2022.09.17"]
[EventType "team-tourn"]
[EventCountry "ESP"]
[SourceTitle "playchess.com"]
[Source "ChessBase"]
[SourceQuality "1"]
[TimeControl "5400+30"]

{[%evp 10,139,36,39,31,35,36,0,0,0,0,0,0,0,0,0,0,0,0,0,0,5,6,23,31,31,31,31,29,35,34,28,29,41,57,58,58,58,58,52,56,53,56,52,69,64,77,75,75,72,80,77,77,66,70,74,70,68,77,64,81,81,81,81,96,81,81,78,81,81,81,83,110,107,106,122,128,87,225,87,125,41,44,38,50,51,33,33,40,38,38,38,41,41,100,39,102,83,114,114,184,193,183,176,187,203,177,188,166,30,202,191,247,247,247,247,247,247,309,275,402,402,402,402,402,399,885,887,29989,29990,29991,29992]} 1. e4 {[%emt 0:00:03]} e5 {[%emt 0:00:11]} 2. Nf3 {[%emt 0:00:02]} Nf6 {[%emt 0:00:07]} 3. Nc3 {[%emt 0:00:04]} Nc6 {[%emt 0:00:07]} 4. Bb5 {[%emt 0:00:04]} Nd4 {[%emt 0:00:13]} 5. Bc4 {[%emt 0:00:04]} Bc5 {[%emt 0:00:13]} 6. Nxe5 {[%emt 0:00:19]} Qe7 {[%emt 0:00:22] C48: Four Knights: 4 Bb5, replies other than 4...Bb4.} 7. Nf3 {[%emt 0:00:14]} (7. Bxf7+ Kf8 8. Nd3 (8. f4 $2 d6 $19) 8... Kxf7 $17) (7. Nxf7 Rf8 8. O-O b5 9. Nxb5 (9. Nd5 Nxd5 10. Bxd5 c6 $11) 9... Nxb5 $11) 7... d5 {[%emt 0:22:37][%mdl 64] Decoy} ({Not} 7... Nxe4 8. Nd5 Nxf3+ 9. gxf3 $16 (9. Qxf3 Ng5+ 10. Qe3 Qxe3+ 11. Nxe3 O-O $11)) 8. Nxd5 {[%emt 0:00:08]} Qxe4+ {[%emt 0:23:46] The position is equal.} 9. Ne3 {[%emt 0:01:39][%cal Oc4f7] Hoping for Bxf7+!} Bg4 {[%emt 0:00:29]} 10. Be2 {[%emt 0:00:05]} Nxe2 {[%emt 0:00:14]} 11. Qxe2 {[%emt 0:00:04]} O-O-O {[%emt 0:13:28]} 12. d3 {[%emt 0:00:11]} Bxf3 {[%emt 0:15:14]} 13. Qxf3 {[%emt 0:00:05]} Qxf3 {[%emt 0:00:17]} 14. gxf3 {[%emt 0:00:04]} Rhe8 {[%emt 0:00:25]} 15. Rg1 {[%emt 0:00:05]} g6 {[%emt 0:05:10]} 16. Kf1 {[%emt 0:00:05]} Nd5 {[%emt 0:04:44]} 17. Nxd5 {[%emt 0:00:27]} Rxd5 {[%emt 0:00:01]} 18. Rg5 {[%emt 0:13:06]} f5 {[%emt 0:01:35] White must now prevent ...Rde5.} 19. f4 {[%emt 0:00:07] Prevents Rde5.} Rd6 {[%emt 0:08:10]} 20. Bd2 {[%emt 0:00:20] [#]} Rb6 $146 {[%emt 0:02:21]} ({Predecessor:} 20... Bd4 21. c3 Bf6 22. Rg3 a5 23. Re1 Rxe1+ 24. Kxe1 a4 25. Kd1 b5 26. Kc2 Re6 {1-0 (56) Horvath,D (2483)-Paravyan,D (2617) Chess.com INT 2022}) 21. Rb1 {[%emt 0:00:56]} Ra6 {[%emt 0:00:17]} 22. a3 {[%emt 0:00:09]} Rae6 {[%emt 0:00:26]} 23. Re1 {[%emt 0:00:10] Inhibits Re2.} Rxe1+ {[%emt 0:00:15]} 24. Bxe1 $14 {[%emt 0:00:03][%mdl 4096] Endgame KRB-KRB} Re6 {[%emt 0:00:19]} 25. Rg3 {[%emt 0:00:59]} Bd4 {[%emt 0:00:47]} 26. c3 $1 {[%emt 0:00:18]} Bc5 {[%emt 0:00:53]} 27. Bd2 {[%emt 0:01:02]} Rb6 {[%emt 0:00:27]} 28. b4 {[%emt 0:00:04]} Be7 {[%emt 0:00:27]} 29. Ke2 {[%emt 0:00:54]} Kd7 {[%emt 0:00:33]} 30. Rh3 {[%emt 0:00:25]} h5 {[%emt 0:00:13]} 31. Rg3 {[%emt 0:00:02]} Ra6 {[%emt 0:00:25]} 32. Bc1 $1 {[%emt 0:03:46]} b5 {[%emt 0:00:17]} 33. Kd2 {[%emt 0:03:20]} Re6 {[%emt 0:00:25]} 34. Kd1 {[%emt 0:01:34]} Rc6 {[%emt 0:00:32]} 35. Kc2 {[%emt 0:00:16]} Bh4 {[%emt 0:00:53]} 36. Rg2 {[%emt 0:00:50]} Bf6 {[%emt 0:00:40]} 37. Bd2 {[%emt 0:00:04]} Bg7 {[%emt 0:00:32]} 38. Kb3 {[%emt 0:01:51]} a6 {[%emt 0:00:17]} 39. Rg1 {[%emt 0:01:01]} Rd6 {[%emt 0:00:22]} 40. Kc2 {[%emt 0:00:43]} Re6 {[%emt 0:00:04]} 41. Be3 {[%emt 0:00:57]} Rc6 {[%emt 0:00:03]} 42. d4 {[%emt 0:00:03]} Kc8 {[%emt 0:01:56]} 43. Kd3 {[%emt 0:00:34]} Bf8 {[%emt 0:00:22]} (43... Kd7 $16) 44. Ra1 {[%emt 0:00:39]} (44. d5 $18 Rf6 45. Bd4) 44... a5 {[%emt 0:00:14]} 45. Bd2 {[%emt 0:02:18]} (45. bxa5 $16 {a4 is the strong threat.} Ra6 46. Rg1) 45... Ra6 $1 {[%emt 0:00:44]} 46. Re1 {[%emt 0:00:12] Strongly threatening Re8+.} Kd7 {[%emt 0:00:15] Against Re8} 47. Re5 {[%emt 0:00:20]} axb4 {[%emt 0:00:19]} 48. axb4 {[%emt 0:00:04]} Rb6 {[%emt 0:00:37]} 49. Re1 {[%emt 0:08:17]} Ra6 {[%emt 0:00:13] Against Ra1} 50. Rg1 {[%emt 0:00:04]} Be7 {[%emt 0:00:54]} 51. Be3 {[%emt 0:00:09]} Bf8 {[%emt 0:00:43] [#]} ({Better is} 51... Ke8 $14) 52. Kc2 {[%emt 0:00:46]} (52. d5 $1 $16) 52... Be7 {[%emt 0:00:10]} (52... Ke7 $14) 53. Kb3 {[%emt 0:00:04]} Bf8 {[%emt 0:00:49]} 54. d5 {[%emt 0:00:06]} Bh6 {[%emt 0:00:32]} (54... Be7 $16 55. Bd4 Ke8) 55. c4 $18 {[%emt 0:00:35]} bxc4+ {[%emt 0:00:14]} 56. Kxc4 {[%emt 0:00:04]} Bf8 {[%emt 0:00:23]} 57. Kb5 {[%emt 0:04:38]} Ra2 {[%emt 0:01:01]} 58. Rxg6 {[%emt 0:04:26]} Rb2 {[%emt 0:00:04] [#]} 59. Rf6 {[%emt 0:00:05]} (59. Kc4 $1 $18) 59... Bxb4 {[%emt 0:00:16]} (59... Rxb4+ $11 {and Black is okay.} 60. Ka5 Rb8) 60. Kc4 {[%emt 0:00:03]} Be7 {[%emt 0:01:08]} (60... Be1 {might work better.} 61. Rf7+ (61. Rxf5 Bxf2 62. Bxf2 Rxf2 $16) 61... Kd8) 61. Rxf5 {[%emt 0:00:06]} h4 {[%emt 0:00:00]} 62. Rf7 {[%emt 0:00:27] aiming for Bc5.} Ke8 {[%emt 0:00:27]} 63. Rh7 {[%emt 0:00:05]} Rb1 {[%emt 0:00:22]} 64. Kd4 {[%emt 0:00:23]} Rh1 {[%emt 0:01:17]} (64... Ra1 {was called for.} 65. h3 Ra7) 65. Ke5 {[%emt 0:00:10]} Ra1 {[%emt 0:00:27]} 66. Bd4 {[%emt 0:03:59]} Ra6 {[%emt 0:00:27]} 67. Kf5 {[%emt 0:00:10] Inhibits Bf6.} Ra5 $2 {[%emt 0:00:15]} (67... c6 68. d6 Bxd6 69. Rxh4 Bf8) 68. Be5 {[%emt 0:00:10]} Bd8 {[%emt 0:00:50]} 69. Ke6 {[%emt 0:00:13][%cal Rh7h8]} Ra6+ {[%emt 0:00:20]} 70. d6 {[%emt 0:00:05] Weighted Error Value: White=0.13 (very precise) /Black=0.17 (very precise)} 1-0

[Event "ESP-ch Teams Primera 2022"]
[Site "Sanxenxo Pontevedra"]
[Date "2022.09.23"]
[Round "7.10"]
[White "Ladron De Guevara Pinto, Paolo"]
[Black "Adla, Diego"]
[Result "0-1"]
[ECO "C11"]
[WhiteElo "2429"]
[BlackElo "2393"]
[Annotator "TA"]
[PlyCount "134"]
[EventDate "2022.09.17"]
[EventType "team-tourn"]
[EventCountry "ESP"]
[SourceTitle "playchess.com"]
[Source "ChessBase"]
[SourceQuality "1"]
[TimeControl "5400+30"]

{[%evp 12,134,0,0,0,12,6,0,0,-26,-14,-18,-20,-31,-38,-85,-38,-83,-69,-104,-49,-53,-56,-179,-185,-177,-129,-198,-200,-183,-175,-360,-262,-353,-322,-501,-483,-508,-490,-634,-634,-623,-620,-591,-606,-597,-577,-629,-610,-620,-627,-692,-685,-737,-735,-937,-709,-706,-693,-698,-695,-681,-663,-622,-570,-535,-589,-585,-573,-573,-540,-512,-455,-694,-658,-814,-814,-809,-751,-798,-738,-764,-748,-810,-802,-791,-772,-760,-745,-738,-615,-598,-524,-735,-712,-735,-716,-570,0,-699,-699,-910,-899,-840,-498,-813,-784,-731,-613,-815,-789,-827,-817,-815,-810,-803,-777,-4952,-675,-768,-741,-781,-755,-790,-774]} 1. e4 e6 2. d4 d5 3. Nc3 Nf6 4. e5 Nfd7 5. Nce2 c5 6. c3 Nc6 7. a3 cxd4 {C11: French: Classical System: 4 e5 and 4 Bg5 dxe4.} 8. cxd4 {[#]} f6 $146 ({Predecessor:} 8... a5 9. Nf3 b5 10. h4 h6 11. Nf4 b4 12. a4 Ba6 13. b3 Bxf1 14. Kxf1 Rc8 15. Rh3 {1-0 (47) Bosagh Zadeh,A (2215)-Joodaki,S (1955) Chess.com INT 2021}) 9. exf6 (9. Nf4 {is more complex.} fxe5 10. Nxe6 Qb6 11. Bb5) 9... Qxf6 {The position is equal.} 10. f4 {Prevents e5.} Bd6 11. Nf3 O-O 12. Be3 Nb6 13. b3 (13. Ng3 $15) 13... a5 {Black has more active pieces. The white rooks are badly placed.} (13... Bd7 $17) 14. Ne5 Qe7 15. a4 g5 ({Black should try} 15... Nd7 $17 16. Nd3 b6) 16. g3 $15 gxf4 17. Bxf4 (17. gxf4 $15 Qh4+ 18. Kd2) 17... Bb4+ $19 18. Kf2 Nd7 (18... Nxe5 $19 19. dxe5 Qg7) 19. Kg2 (19. Bh3 $17) 19... Ndxe5 20. dxe5 Qg7 {Prevents Bh6.} 21. Qc1 {Prevents Bc5.} (21. h3) 21... Rf5 22. h4 Bd7 ({Avoid the trap} 22... Nxe5 $2 23. Nd4 Rf7 24. Bxe5 Qxe5 25. Nf3 $19) 23. Ra2 (23. Rg1 $142) 23... Raf8 24. Kh2 Nxe5 25. Bxe5 Rf2+ 26. Bg2 Qxe5 27. Qg5+ Qxg5 28. hxg5 e5 {[%cal Be6e5,Be5e4][%mdl 32] [#] And now ...Bg4 would win.} 29. Nc1 e4 {aiming for ...Bg4.} 30. Rd1 Be6 31. Kg1 Bc5 32. Kh1 b6 33. Re1 Rxa2 34. Nxa2 Rf2 35. Nc3 Rc2 36. Nb5 Bg4 37. Nc7 Bb4 {A strong pair of Bishops.} 38. Nxd5 Bxe1 39. Nf6+ Kg7 {( -> ...Bf3)} 40. Nxg4 {[%mdl 4096] Endgame KRB-KBN} Rc3 41. Bxe4 Rxg3 42. Bf5 (42. Nf6 $142 Rxb3 43. Bd5 Rh3+ 44. Kg1) 42... Bd2 43. Be6 Bxg5 44. Nf2 Re3 45. Bc4 Be7 46. Kg2 Bc5 47. Ng4 Re7 48. Nh2 Kf6 49. Kf3 Kg5 50. Nf1 Kf5 51. Ng3+ Ke5 {White must now prevent ...Rg7.} 52. Kg4 Rg7+ 53. Kf3 Rg5 {Threatens to win with ...h5.} 54. Bf7 Rg7 55. Bc4 Rg6 {Black is clearly winning.} 56. Bd3 Rf6+ 57. Kg4 Rf7 {...Rf4+ is the strong threat.} 58. Nh5 (58. Ne2 $142) 58... Kd4 59. Bc4 Rf2 60. Nf4 Kc3 61. Nd5+ Kb2 62. Nf4 Ka3 63. Ne2 Bd6 64. Nc3 Be5 (64... Rf4+ $142 65. Kg5 {[#]} Rxc4 $1 {[%mdl 512]} 66. bxc4 Kb4) 65. Nd5 Bd4 66. Nc7 Bc5 67. Ne6 Rb2 {Weighted Error Value: White=0.56/Black=0.20 (precise)} 0-1